bitfinex/quotes_BTCUSD_20250421
["timestamp","ask_amount","ask_price","bid_price","bid_amount"]
[1745224515306,0.0499,87431.0,87406.0,0.29767288]
[1745224517057,0.0471,87430.0,87406.0,0.29767288]
[1745224518751,0.0499,87429.0,87406.0,0.29767288]
[1745224521096,0.0483,87427.0,87406.0,0.24797288]
[1745224521293,0.11944791,87426.0,87406.0,0.24797288]
[1745224521600,0.0483,87425.0,87406.0,0.24797288]
[1745224521915,0.045,87423.0,87406.0,0.24797288]
[1745224522054,0.0483,87422.0,87406.0,0.24797288]
[1745224522260,0.0483,87422.0,87407.0,0.01198964]
[1745224522468,0.0483,87422.0,87406.0,0.24797288]
[1745224522975,0.0483,87420.0,87406.0,0.24797288]
[1745224523194,0.16774791,87420.0,87406.0,0.24797288]
[1745224527756,0.16774791,87420.0,87405.0,0.69542436]
[1745224527757,0.0483,87418.0,87405.0,0.69542436]
[1745224527968,0.14804838,87430.0,87405.0,0.69542436]
[1745224527969,0.0483,87416.0,87405.0,0.69542436]
[1745224528145,0.0483,87416.0,87406.0,0.34]
[1745224529783,0.11944791,87415.0,87406.0,0.34]
[1745224529989,0.0483,87414.0,87406.0,0.34]
[1745224538233,0.0472,87413.0,87406.0,0.34]
[1745224538466,0.0472,87412.0,87406.0,0.34]
[1745224538646,0.0472,87410.0,87406.0,0.34]
[1745224555366,0.11944791,87409.0,87406.0,0.34]
[1745224556305,0.0495,87407.0,87406.0,0.34]
[1745224556509,0.21454791,87407.0,87406.0,0.34]
[1745224560924,0.001,87409.0,87406.0,0.34]
[1745224563162,0.001,87409.0,87405.0,0.69542436]
[1745224565302,0.0456,87408.0,87405.0,0.69542436]
[1745224569500,0.0456,87408.0,87405.0,0.69542436]
[1745224574390,0.16504791,87408.0,87405.0,0.69542436]
[1745224574608,0.11944791,87407.0,87405.0,0.69542436]
[1745224576020,0.0459,87406.0,87405.0,0.69542436]
[1745224576220,0.16534791,87406.0,87405.0,0.69542436]
[1745224576463,0.16534791,87406.0,87405.0,1.03542436]
[1745224576698,0.16534791,87406.0,87405.0,0.69542436]
[1745224576900,0.21104791,87406.0,87405.0,0.69542436]
[1745224579214,0.21104791,87406.0,87405.0,0.70024389]
[1745224581811,0.21104791,87406.0,87405.0,0.45721044]
[1745224586391,0.21204791,87406.0,87405.0,0.45721044]
[1745224591094,0.21104791,87406.0,87405.0,0.45721044]
[1745224591438,0.21204791,87406.0,87405.0,0.45721044]
[1745224594660,0.21174976,87406.0,87405.0,0.45721044]
[1745224595373,0.21174976,87406.0,87405.0,0.43184587]
[1745224596357,0.21174976,87406.0,87405.0,0.44764317]
[1745224599199,0.30686976,87406.0,87405.0,0.44764317]
[1745224605293,0.30686976,87406.0,87405.0,0.44282364]
[1745224610824,0.72306976,87406.0,87405.0,0.42702634]
[1745224611272,0.7551557,87406.0,87405.0,0.42702634]
[1745224611966,0.76318104,87406.0,87405.0,0.42702634]
[1745224614437,0.7551557,87406.0,87405.0,0.42702634]
[1745224615550,0.72306976,87406.0,87405.0,0.42702634]
[1745224618466,0.67736976,87406.0,87405.0,0.42702634]
[1745224619453,0.001,87406.0,87405.0,0.42802634]
[1745224619627,0.05687142,87432.0,87405.0,0.42802634]
[1745224619830,0.14804838,87430.0,87405.0,0.42902634]
[1745224620016,0.11944791,87426.0,87405.0,0.42902634]
[1745224621507,0.09508,87425.0,87405.0,0.42902634]
[1745224621818,0.14804838,87420.0,87405.0,0.42902634]
[1745224622022,0.11944791,87419.0,87405.0,0.42902634]
[1745224622439,0.0498,87413.0,87406.0,0.34]
[1745224622653,0.11944791,87412.0,87406.0,0.34]
[1745224623414,0.11944791,87412.0,87405.0,0.42902634]
[1745224623637,0.11944791,87406.0,87405.0,0.42902634]
[1745224623846,0.21452791,87406.0,87405.0,0.42902634]
[1745224628538,0.63072791,87406.0,87405.0,0.42902634]
[1745224629542,0.63076791,87406.0,87405.0,0.42902634]
[1745224630955,0.53564791,87406.0,87405.0,0.42902634]
[1745224631305,0.63076791,87406.0,87405.0,0.42902634]
[1745224633560,0.63076791,87406.0,87405.0,0.24419514]
[1745224638897,0.53564791,87406.0,87405.0,0.24419514]
[1745224639083,0.63076791,87406.0,87405.0,0.24419514]
[1745224639499,0.63058379,87406.0,87405.0,0.24419514]
[1745224641108,0.63158379,87406.0,87400.0,2.424e-05]
[1745224646161,0.21538379,87406.0,87400.0,2.424e-05]
[1745224650975,0.21438379,87406.0,87400.0,2.424e-05]
[1745224653797,0.11926379,87406.0,87400.0,2.424e-05]
[1745224654594,0.12026379,87406.0,87400.0,2.424e-05]
[1745224657838,0.4162,87405.0,87400.0,2.424e-05]
[1745224658149,0.11944791,87404.0,87400.0,2.424e-05]
[1745224659031,0.11949304,87404.0,87398.0,0.01419448]
[1745224659174,0.11949304,87404.0,87393.0,0.0008444]
[1745224661476,0.09508,87403.0,87393.0,0.0008444]
[1745224661684,0.11944791,87402.0,87393.0,0.0008444]
[1745224662992,0.11944791,87402.0,87395.0,0.01666316]
[1745224679338,4.513e-05,87404.0,87395.0,0.01666316]
[1745224679504,0.11944791,87403.0,87395.0,0.01666316]
[1745224681509,0.16534791,87403.0,87395.0,0.01666316]
[1745224686051,0.16634791,87403.0,87395.0,0.01666316]
[1745224688374,0.12044791,87403.0,87395.0,0.01666316]
[1745224694725,0.001,87403.0,87397.0,0.0464]
[1745224696982,4.513e-05,87404.0,87397.0,0.0474]
[1745224697400,4.513e-05,87404.0,87398.0,0.00228809]
[1745224702511,4.513e-05,87404.0,87397.0,0.0474]
[1745224709756,0.001,87406.0,87398.0,0.00228794]
[1745224709961,0.047,87427.0,87399.0,0.11944791]
[1745224710462,0.047,87427.0,87400.0,0.34]
[1745224710659,0.047,87427.0,87402.0,0.34]
[1745224711092,0.047,87427.0,87402.0,0.341]
[1745224711378,0.09185741,87425.0,87402.0,0.341]
[1745224711585,0.047,87423.0,87402.0,0.341]
[1745224711795,0.047,87423.0,87377.0,0.42718585]
[1745224711796,0.09185741,87416.0,87377.0,0.42634085]
[1745224712030,0.09185741,87416.0,87383.0,0.09508]
[1745224712031,0.047,87413.0,87383.0,0.09508]
[1745224712225,0.11944791,87412.0,87384.0,0.11944791]
[1745224712441,0.047,87411.0,87385.0,0.34]
[1745224712667,0.047,87411.0,87385.0,0.45944791]
[1745224714487,0.047,87409.0,87384.0,0.01491484]
[1745224714658,0.16644791,87409.0,87384.0,0.01491484]
[1745224714859,0.16644791,87409.0,87383.0,0.09508]
[1745224715033,0.11944791,87409.0,87383.0,0.09508]
[1745224715241,0.047,87408.0,87383.0,0.09508]
[1745224715444,0.047,87408.0,87383.0,0.11015152]
[1745224717590,0.047,87408.0,87384.0,0.34]
[1745224721620,0.047,87408.0,87385.0,0.00228818]
[1745224729359,0.0483,87406.0,87383.0,0.01507152]
[1745224729622,0.0483,87406.0,87383.0,0.11944791]
[1745224730003,0.0483,87406.0,87384.0,0.00228816]
[1745224730544,0.0499,87405.0,87377.0,0.23398435]
[1745224730822,0.0499,87405.0,87378.0,0.12173608]
[1745224732017,0.11944791,87404.0,87377.0,0.01454085]
[1745224732217,0.0499,87403.0,87378.0,0.00114413]
[1745224732426,0.11944791,87402.0,87378.0,0.00114413]
[1745224732926,0.11944791,87402.0,87378.0,0.01601341]
[1745224734869,0.09200791,87402.0,87378.0,0.0462442]
[1745224735251,0.0499,87403.0,87378.0,0.0462442]
[1745224735453,0.0499,87403.0,87379.0,0.01454085]
[1745224735688,0.0499,87403.0,87381.0,0.01454085]
[1745224735898,0.0455,87407.0,87383.0,0.35454085]
[1745224736080,0.0455,87407.0,87385.0,0.34]
[1745224736278,0.0455,87407.0,87385.0,0.11944791]
[1745224738960,0.0499,87406.0,87385.0,0.11944791]
[1745224739369,0.0455,87407.0,87385.0,0.11944791]
[1745224739668,0.0455,87407.0,87386.0,0.00114379]
[1745224740243,0.0455,87407.0,87385.0,0.11944791]
[1745224742635,0.0499,87406.0,87385.0,0.11944791]
[1745224752369,0.0474,87405.0,87386.0,0.34]
[1745224752600,0.0478,87404.0,87386.0,0.34]
[1745224752846,0.0952,87400.0,87386.0,0.34]
[1745224753067,0.09185741,87395.0,87379.0,0.23398435]
[1745224753279,0.0952,87386.0,87378.0,0.01486928]
[1745224753488,0.0474,87385.0,87378.0,0.01486928]
[1745224753735,0.04737284,87385.0,87362.0,0.0008452]
[1745224754025,0.0478,87384.0,87362.0,0.0008452]
[1745224754190,0.11944791,87384.0,87373.0,0.01945578]
[1745224754492,0.0478,87382.0,87373.0,0.01968144]
[1745224756062,0.11944791,87382.0,87373.0,0.01968144]
[1745224756266,0.0478,87381.0,87373.0,0.01968144]
[1745224756613,0.0474,87380.0,87373.0,0.01968144]
[1745224762134,0.0319,87380.0,87373.0,0.01968144]
[1745224762539,0.01291,87380.0,87373.0,0.01968144]
[1745224768241,0.0478,87381.0,87373.0,0.01968144]
[1745224768242,0.0478,87381.0,87373.0,0.02082712]
[1745224771150,0.0485,87380.0,87373.0,0.02082712]
[1745224772488,0.02794,87380.0,87373.0,0.02082712]
[1745224777188,0.02794,87380.0,87351.0,0.09508]
[1745224777397,0.02794,87380.0,87355.0,9.827e-05]
[1745224779586,0.02783809,87380.0,87355.0,9.827e-05]
[1745224780154,0.02783809,87380.0,87355.0,0.00885673]
[1745224781027,0.02783809,87380.0,87355.0,0.02725884]
[1745224781228,0.02783809,87380.0,87355.0,9.827e-05]
[1745224784864,0.02783809,87380.0,87355.0,0.00860329]
[1745224785787,0.02783809,87380.0,87355.0,0.02729173]
[1745224787194,0.02140809,87380.0,87355.0,0.02729173]
[1745224787399,0.00643,87380.0,87356.0,0.13398876]
[1745224787555,0.08618288,87392.0,87358.0,0.35454085]
[1745224787780,0.11944791,87391.0,87360.0,0.40194085]
[1745224787986,0.11944791,87391.0,87362.0,0.35454085]
[1745224788185,0.11944791,87391.0,87362.0,0.47398876]
[1745224790113,0.11944791,87391.0,87360.0,0.0474]
[1745224790114,0.00286073,87390.0,87360.0,0.0474]
[1745224790315,0.11944791,87389.0,87360.0,0.0474]
[1745224790537,0.047,87388.0,87360.0,0.0474]
[1745224790745,0.16774791,87387.0,87360.0,0.0474]
[1745224791331,0.0483,87385.0,87355.0,0.02729173]
[1745224791536,0.12230888,87384.0,87355.0,0.02729173]
[1745224791917,0.0936,87383.0,87355.0,0.02729173]
[1745224792128,0.11944791,87382.0,87355.0,0.02729173]
[1745224794319,0.09185741,87374.0,87355.0,0.02729173]
[1745224794528,0.0936,87373.0,87355.0,0.02729173]
[1745224800327,0.12230915,87372.0,87355.0,0.02729173]
[1745224800504,0.0936,87371.0,87355.0,0.01878671]
[1745224800723,0.0936,87368.0,87355.0,0.01878671]
[1745224800928,0.12230946,87367.0,87355.0,0.01878671]
[1745224801355,0.0466,87366.0,87355.0,0.01878671]
[1745224801486,0.12230954,87365.0,87355.0,0.01878671]
[1745224801991,0.047,87364.0,87355.0,0.01878671]
[1745224802188,0.0936,87362.0,87355.0,0.01878671]
[1745224802389,0.21304791,87362.0,87355.0,0.01878671]
[1745224809791,0.04846165,87379.0,87355.0,0.01878671]
[1745224809992,0.0456,87379.0,87355.0,0.01878671]
[1745224810196,0.0456,87379.0,87356.0,0.0486]
[1745224811604,0.09508,87384.0,87356.0,0.16804791]
[1745224811822,0.08869419,87384.0,87357.0,0.13398876]
[1745224811998,0.0456,87386.0,87357.0,0.13398876]
[1745224813767,0.0458,87389.0,87359.0,0.01454085]
[1745224813978,0.16524791,87389.0,87361.0,0.35454085]
[1745224814186,0.16524791,87389.0,87361.0,0.47398876]
[1745224827044,0.16524791,87389.0,87362.0,0.0452]
[1745224829118,0.11944791,87388.0,87362.0,0.0452]
[1745224829351,0.00286092,87387.0,87362.0,0.0452]
[1745224829551,0.11944791,87386.0,87362.0,0.0452]
[1745224829787,0.00286095,87385.0,87362.0,0.0452]
[1745224829989,0.11944791,87384.0,87362.0,0.0452]
[1745224836197,0.00286094,87383.0,87362.0,0.0452]
[1745224836383,0.11944791,87382.0,87362.0,0.0452]
[1745224836757,0.00286111,87381.0,87362.0,0.0452]
[1745224836984,0.11944791,87380.0,87362.0,0.0452]
[1745224837996,0.00286112,87379.0,87362.0,0.0452]
[1745224838214,0.11944791,87378.0,87362.0,0.0452]
[1745224844013,0.04866114,87389.0,87362.0,0.0452]
[1745224844155,0.11944791,87388.0,87362.0,0.0452]
[1745224844355,0.11944791,87388.0,87363.0,0.0479]
[1745224846111,0.00286101,87387.0,87363.0,0.0479]
[1745224846314,0.11944791,87386.0,87363.0,0.0479]
[1745224846516,0.00286101,87385.0,87363.0,0.0479]
[1745224846725,0.11944791,87384.0,87363.0,0.0479]
[1745224851970,0.00286102,87383.0,87363.0,0.0479]
[1745224852170,0.11944791,87382.0,87363.0,0.0479]
[1745224856746,0.11944791,87382.0,87355.0,0.01878671]
[1745224859770,0.11944791,87382.0,87356.0,0.0486]
[1745224860381,0.11339052,87382.0,87356.0,0.0486]
[1745224860677,0.11339052,87382.0,87356.0,0.3886]
[1745224862047,0.0492,87381.0,87356.0,0.3886]
[1745224862246,0.17150894,87380.0,87355.0,0.01878671]
[1745224862368,0.0492,87379.0,87355.0,0.01878671]
[1745224862573,0.0492,87374.0,87355.0,0.01878671]
[1745224862770,0.04910935,87372.0,87355.0,0.01878671]
[1745224862979,0.1223095,87371.0,87355.0,0.01878671]
[1745224863185,0.0492,87370.0,87355.0,0.01878671]
[1745224863403,0.12230959,87369.0,87355.0,0.01878671]
[1745224866075,0.0492,87368.0,87355.0,0.01878671]
[1745224866201,0.12230959,87367.0,87355.0,0.01878671]
[1745224874751,0.12230959,87367.0,87331.0,0.01454085]
[1745224874961,0.12230959,87367.0,87339.0,0.00013567]
[1745224875160,0.12230959,87367.0,87339.0,0.00859115]
[1745224879535,0.0917,87366.0,87339.0,0.00859115]
[1745224879661,0.12230959,87365.0,87339.0,0.00859115]
[1745224881657,0.12230959,87365.0,87332.0,0.11944791]
[1745224881803,0.0456,87364.0,87332.0,0.11949304]
[1745224882003,0.0456,87362.0,87332.0,0.11949304]
[1745224882248,0.0456,87361.0,87332.0,0.11949304]
[1745224883567,0.0456,87361.0,87332.0,0.12823302]
[1745224883768,0.0456,87361.0,87333.0,0.35454085]
[1745224883915,0.00286153,87371.0,87335.0,0.34]
[1745224883916,0.0456,87359.0,87335.0,0.34]
[1745224884117,0.0456,87359.0,87335.0,0.45944791]
[1745224884544,0.0456,87359.0,87335.0,0.34]
[1745224889754,0.0456,87359.0,87332.0,0.00878511]
[1745224889982,0.0456,87359.0,87333.0,0.11944791]
[1745224890326,0.03954,87359.0,87333.0,0.11944791]
[1745224890544,0.03954,87359.0,87333.0,0.13444791]
[1745224890751,0.37876,87399.0,87335.0,0.01454085]
[1745224891067,0.09508,87379.0,87337.0,0.06144085]
[1745224891267,0.37876,87399.0,87339.0,0.01454085]
[1745224891566,0.09508,87381.0,87341.0,0.01454085]
[1745224891804,0.09508,87381.0,87343.0,0.01454085]
[1745224892026,0.09508,87381.0,87345.0,0.01454085]
[1745224892204,0.09508,87381.0,87346.0,0.11944791]
[1745224892408,0.4162,87394.0,87347.0,0.0469]
[1745224892584,0.09508,87381.0,87348.0,0.11944791]
[1745224893734,0.0456,87375.0,87349.0,0.3885]
[1745224893928,0.0456,87375.0,87349.0,0.50794791]
[1745224898205,0.0456,87375.0,87349.0,0.50794791]
[1745224899574,0.0456,87375.0,87349.0,0.45944791]
[1745224899793,0.0456,87375.0,87350.0,0.01198964]
[1745224899998,0.0456,87375.0,87349.0,0.45944791]
[1745224900936,0.04564,87375.0,87349.0,0.45944791]
[1745224909319,0.04564,87375.0,87350.0,0.0454]
[1745224912787,0.04564,87375.0,87351.0,0.0451]
[1745224920602,0.04850127,87375.0,87351.0,0.0451]
[1745224923010,0.11944791,87374.0,87343.0,0.34]
[1745224923221,0.05246141,87373.0,87344.0,0.0499]
[1745224923358,0.0496,87371.0,87344.0,0.0499]
[1745224923560,0.049,87368.0,87343.0,0.0451]
[1745224923782,0.00286156,87367.0,87343.0,0.0451]
[1745224926200,0.16844791,87368.0,87343.0,0.0451]
[1745224926369,0.049,87368.0,87344.0,0.11944791]
[1745224926574,0.0496,87369.0,87345.0,0.0454]
[1745224926794,0.0496,87369.0,87346.0,0.11944791]
[1745224929606,0.0496,87369.0,87347.0,0.34]
[1745224929810,0.0496,87369.0,87349.0,0.34]
[1745224930038,0.0496,87369.0,87349.0,0.45944791]
[1745224930501,0.04542179,87369.0,87349.0,0.45944791]
[1745224932084,0.04542179,87369.0,87349.0,0.11944791]
[1745224933072,0.04542179,87369.0,87343.0,0.0451]
[1745224933293,0.04542179,87369.0,87343.0,0.16454791]
[1745224934302,0.04542179,87369.0,87343.0,0.11944791]
[1745224935147,0.04542179,87369.0,87344.0,0.34]
[1745224936227,0.0467,87367.0,87338.0,0.07937738]
[1745224936433,0.0467,87364.0,87338.0,0.07937738]
[1745224936650,0.0467,87362.0,87338.0,0.07937738]
[1745224936851,0.0467,87360.0,87338.0,0.07937738]
[1745224937615,0.00286173,87363.0,87338.0,0.07937738]
[1745224937616,0.0467,87358.0,87338.0,0.07937738]
[1745224939256,0.0467,87358.0,87335.0,0.09504]
[1745224939458,0.0467,87358.0,87336.0,0.34]
[1745224940127,0.04061,87358.0,87336.0,0.34]
[1745224940462,0.03281,87358.0,87336.0,0.34]
[1745224945709,0.0471,87359.0,87336.0,0.34]
[1745224948562,0.0478,87358.0,87336.0,0.34]
[1745224948882,0.00560001,87358.0,87336.0,0.34]
[1745224949005,0.00560001,87358.0,87337.0,0.0456]
[1745224949597,0.09504,87371.0,87338.0,0.11944791]
[1745224949797,0.11944791,87371.0,87338.0,0.11944791]
[1745224952596,0.0957,87370.0,87338.0,0.11944791]
[1745224952796,0.0957,87370.0,87339.0,0.34]
[1745224952996,0.0957,87370.0,87341.0,0.34]
[1745224953199,0.0957,87370.0,87343.0,0.34]
[1745224953380,0.0957,87370.0,87343.0,0.45944791]
[1745224957254,0.0479,87370.0,87343.0,0.45944791]
[1745224957458,0.0451,87369.0,87343.0,0.45944791]
[1745224958370,0.03926,87369.0,87343.0,0.45944791]
[1745224961271,0.03941,87369.0,87343.0,0.45944791]
[1745224965955,0.03941,87369.0,87344.0,0.11944791]
[1745224966719,0.0479,87370.0,87345.0,0.01454085]
[1745224966922,0.0479,87370.0,87346.0,0.11944791]
[1745224969783,0.0495,87369.0,87347.0,0.34]
[1745224969990,0.0495,87369.0,87349.0,0.34]
[1745224970291,0.0495,87369.0,87349.0,0.45944791]
[1745224972669,0.03796,87369.0,87349.0,0.45944791]
[1745224977429,0.038,87369.0,87349.0,0.45944791]
[1745224984547,0.038,87369.0,87339.0,0.09504]
[1745224984733,0.05126144,87368.0,87340.0,0.13398876]
[1745224984932,0.05126144,87368.0,87340.0,0.11944791]
[1745224985844,0.05126144,87368.0,87341.0,0.34]
[1745224985845,0.0478,87367.0,87341.0,0.34]
[1745224986040,0.0477,87365.0,87343.0,0.34]
[1745224986244,0.0477,87365.0,87343.0,0.45944791]
[1745224988486,0.03829,87365.0,87343.0,0.45944791]
[1745224991985,0.01126,87365.0,87343.0,0.45944791]
[1745224992407,0.0478,87367.0,87343.0,0.45944791]
[1745224994222,0.0478,87367.0,87344.0,0.13398876]
[1745224994432,0.04168,87367.0,87344.0,0.13398876]
[1745224994637,0.0152,87367.0,87344.0,0.13398876]
[1745224995391,0.01222383,87367.0,87344.0,0.13398876]
[1745224995563,0.0477,87366.0,87344.0,0.13398876]
[1745224995769,0.02417,87366.0,87344.0,0.13398876]
[1745224996157,0.00296,87366.0,87344.0,0.13398876]
[1745224997564,0.00296,87366.0,87345.0,0.34]
[1745224997760,0.00296,87366.0,87347.0,0.34]
[1745224997965,0.00296,87366.0,87346.0,0.11944791]
[1745224997966,0.00296,87366.0,87349.0,0.34]
[1745225001615,0.01222383,87367.0,87349.0,0.34]
[1745225002007,0.00288384,87367.0,87349.0,0.34]
[1745225003457,0.00286152,87366.0,87341.0,0.0497]
[1745225003661,0.00286166,87365.0,87342.0,0.11944791]
[1745225003808,0.00286166,87366.0,87342.0,0.11944791]
[1745225004822,0.0477,87365.0,87342.0,0.11944791]
[1745225005023,0.00286167,87364.0,87343.0,0.34]
[1745225005309,0.00286167,87364.0,87345.0,0.34]
[1745225006250,0.04056167,87365.0,87345.0,0.34]
[1745225006456,0.00280874,87364.0,87345.0,0.34]
[1745225008067,0.0006,87360.0,87345.0,0.34]
[1745225016348,1e-08,87369.0,87345.0,0.34]
[1745225019423,0.0423,87368.0,87345.0,0.34]
[1745225023528,0.0423,87368.0,87341.0,0.0497]
[1745225023763,0.0423,87368.0,87342.0,0.11944791]
[1745225023886,0.03730001,87369.0,87337.0,0.09504]
[1745225023887,0.16174791,87367.0,87337.0,0.09504]
[1745225024099,0.0423,87366.0,87338.0,0.11944791]
[1745225028578,0.0423,87366.0,87339.0,0.34228948]
[1745225028787,0.0423,87366.0,87341.0,0.34]
[1745225028936,0.0423,87366.0,87342.0,0.00228948]
[1745225029365,0.0423,87366.0,87343.0,0.0476]
[1745225029572,0.0423,87366.0,87344.0,0.00228948]
[1745225036465,0.03167192,87366.0,87344.0,0.00228948]
[1745225037385,0.02178193,87366.0,87344.0,0.00228948]
[1745225038497,0.01542193,87366.0,87344.0,0.00228948]
[1745225038933,0.11944791,87367.0,87344.0,0.00228948]
[1745225041867,0.11936612,87367.0,87344.0,0.00228948]
[1745225042501,0.11936612,87367.0,87343.0,0.0476]
[1745225044243,0.11936612,87367.0,87344.0,0.0022895]
[1745225045043,0.0022895,87366.0,87340.0,0.11944791]
[1745225045275,0.0022895,87366.0,87341.0,0.0022895]
[1745225046597,0.16696612,87367.0,87341.0,0.0022895]
[1745225046793,0.0476,87367.0,87341.0,0.12173741]
[1745225048009,0.0476,87367.0,87341.0,0.16963741]
[1745225051424,0.03730001,87369.0,87343.0,0.34]
[1745225051713,0.03730001,87369.0,87344.0,0.09968946]
[1745225052779,0.03730001,87369.0,87345.0,0.0479]
[1745225052953,0.03730001,87369.0,87346.0,0.00228943]
[1745225053720,0.03730001,87369.0,87347.0,0.0479]
[1745225053905,0.03730001,87369.0,87348.0,0.0022894]
[1745225054305,0.09185741,87376.0,87348.0,0.0022894]
[1745225054546,0.11944791,87374.0,87348.0,0.0022894]
[1745225059446,0.11944791,87374.0,87347.0,0.0479]
[1745225059447,0.0022894,87373.0,87346.0,0.19367358]
[1745225059774,0.11944791,87372.0,87347.0,0.0022894]
[1745225059985,0.0022894,87371.0,87347.0,0.0022894]
[1745225062593,0.0022894,87371.0,87348.0,0.0491]
[1745225063135,0.0022894,87371.0,87349.0,0.0022894]
[1745225063346,0.0023294,87375.0,87351.0,0.0491]
[1745225063545,0.0023294,87375.0,87352.0,0.00228927]
[1745225064286,0.0023294,87375.0,87351.0,0.0491]
[1745225064885,0.0023294,87375.0,87352.0,0.00228927]
[1745225065284,0.0023294,87375.0,87351.0,0.0491]
[1745225067508,0.0023294,87375.0,87352.0,0.00228927]
[1745225067722,0.0023294,87375.0,87351.0,0.3891]
[1745225075066,0.00196257,87375.0,87351.0,0.3891]
[1745225075235,0.00196257,87376.0,87351.0,0.3891]
[1745225076603,0.00196257,87376.0,87352.0,0.00228928]
[1745225077660,0.00196257,87376.0,87351.0,0.3891]
[1745225091403,0.00200257,87376.0,87350.0,0.16884791]
[1745225094202,0.00194819,87376.0,87351.0,0.34]
[1745225094809,0.0482,87375.0,87351.0,0.34]
[1745225095008,0.00185381,87374.0,87351.0,0.34]
[1745225106480,0.0486,87373.0,87351.0,0.34]
[1745225106688,0.00185381,87372.0,87351.0,0.34]
[1745225109652,0.05045381,87371.0,87351.0,0.34]
[1745225109856,0.05045381,87371.0,87350.0,0.0494]
[1745225110059,0.05045381,87371.0,87341.0,0.0487]
[1745225110197,0.05045381,87371.0,87342.0,0.11944791]
[1745225110397,0.0486,87369.0,87332.0,0.05748511]
[1745225110625,0.09185741,87361.0,87332.0,0.00878511]
[1745225110845,0.0486,87359.0,87332.0,0.00878511]
[1745225111043,0.0486,87357.0,87332.0,0.00878511]
[1745225111266,0.0486,87355.0,87332.0,0.00878511]
[1745225111466,0.0486,87353.0,87332.0,0.00878511]
[1745225111679,0.16990172,87352.0,87332.0,0.00878511]
[1745225116821,0.01605381,87352.0,87332.0,0.00878511]
[1745225122551,0.00548381,87352.0,87332.0,0.00878511]
[1745225123683,0.00552381,87352.0,87332.0,0.00878511]
[1745225134408,0.09176702,87361.0,87333.0,0.0464]
[1745225134768,0.11944791,87360.0,87334.0,0.0487]
[1745225135061,0.08995369,87364.0,87336.0,0.0464]
[1745225135209,0.4162,87368.0,87337.0,0.12173749]
[1745225135410,0.11944791,87367.0,87337.0,0.12173749]
[1745225136254,0.4162,87368.0,87337.0,0.12173749]
[1745225136485,0.4162,87368.0,87337.0,0.11944791]
[1745225137602,0.4626,87368.0,87338.0,0.34]
[1745225137743,0.4626,87368.0,87340.0,0.34]
[1745225137949,0.4626,87368.0,87342.0,0.34]
[1745225138169,0.4626,87368.0,87342.0,0.45944791]
[1745225138533,0.0464,87368.0,87342.0,0.45944791]
[1745225138734,0.04621655,87368.0,87342.0,0.45944791]
[1745225138929,0.04621655,87368.0,87343.0,0.0454]
[1745225139132,0.04621655,87368.0,87342.0,0.29855768]
[1745225139811,0.04621655,87368.0,87343.0,0.047]
[1745225140550,0.04621655,87368.0,87344.0,0.00228949]
[1745225141378,0.18685741,87370.0,87345.0,0.047]
[1745225141579,0.11944791,87369.0,87346.0,0.00228949]
[1745225141780,0.0454,87375.0,87347.0,0.047]
[1745225142143,0.1432,87376.0,87349.0,0.0924]
[1745225142344,0.04824,87376.0,87350.0,0.11944791]
[1745225147444,0.04824,87376.0,87351.0,0.34]
[1745225149900,4e-05,87376.0,87351.0,0.34]
[1745225151044,4e-05,87376.0,87352.0,0.0474]
[1745225156282,4e-05,87376.0,87353.0,0.0463]
[1745225156465,4e-05,87376.0,87354.0,0.0474]
[1745225158226,4e-05,87376.0,87354.0,0.05588346]
[1745225160196,4e-05,87376.0,87355.0,0.0451]
[1745225160425,0.0454,87392.0,87358.0,0.0905]
[1745225160426,0.18681741,87385.0,87358.0,0.0905]
[1745225160660,0.11944791,87384.0,87360.0,0.0454]
[1745225161884,0.11944791,87384.0,87360.0,0.04544513]
[1745225165967,0.16514791,87384.0,87360.0,0.04544513]
[1745225166209,0.0454,87383.0,87360.0,4.513e-05]
[1745225166437,0.0457,87381.0,87360.0,4.513e-05]
[1745225166562,0.11944791,87380.0,87360.0,4.513e-05]
[1745225176636,0.11944791,87380.0,87361.0,0.0466]
[1745225176811,0.11944791,87380.0,87338.0,0.07937738]
[1745225177108,0.11956685,87380.0,87339.0,0.11944791]
[1745225177495,0.09492,87379.0,87339.0,0.11944791]
[1745225177702,0.11944791,87378.0,87339.0,0.11944791]
[1745225179762,0.11944791,87378.0,87340.0,0.095]
[1745225179980,0.11944791,87378.0,87342.0,0.095]
[1745225180149,0.11944791,87378.0,87345.0,0.0466]
[1745225187204,0.0476,87377.0,87345.0,0.0466]
[1745225187379,0.11944791,87376.0,87345.0,0.0466]
[1745225187746,0.0962,87375.0,87345.0,0.0466]
[1745225187948,0.11944791,87374.0,87345.0,0.0466]
[1745225189401,0.0476,87373.0,87345.0,0.0466]
[1745225189609,0.11944791,87372.0,87345.0,0.0466]
[1745225189808,0.11919753,87372.0,87345.0,0.0466]
[1745225190711,0.0962,87369.0,87340.0,0.0466]
[1745225190920,0.0476,87367.0,87334.0,0.0466]
[1745225191155,0.0476,87365.0,87334.0,0.0466]
[1745225191353,0.11944791,87364.0,87334.0,0.0466]
[1745225192543,0.09492,87363.0,87334.0,0.0466]
[1745225192765,0.11944791,87362.0,87334.0,0.0466]
[1745225194132,0.11944791,87362.0,87334.0,0.05536755]
[1745225194575,0.0476,87361.0,85330.0,0.0042988]
[1745225194754,0.11944791,87360.0,87308.0,0.05425297]
[1745225195177,0.11944791,87360.0,87166.0,0.001]
[1745225195178,0.11944791,87360.0,87305.0,0.05747068]
[1745225195678,0.11944791,87360.0,87325.0,0.00228995]
[1745225195902,0.0495,87359.0,87325.0,0.00228995]
[1745225196023,0.11944791,87358.0,87325.0,0.00228995]
[1745225196227,0.11944791,87358.0,87305.0,0.05747068]
[1745225196473,0.11944791,87358.0,87307.0,0.05768899]
[1745225197075,0.11944791,87358.0,87325.0,0.00228995]
[1745225197436,0.11944791,87358.0,87327.0,0.0459]
[1745225197641,0.11944791,87358.0,87328.0,0.00228995]
[1745225198583,0.0491,87357.0,87328.0,0.00228995]
[1745225198761,0.11944791,87356.0,87328.0,0.00228995]
[1745225198961,0.11944791,87356.0,87327.0,0.0459]
[1745225203933,0.11944791,87356.0,87328.0,0.00228995]
[1745225205645,0.11948791,87356.0,87328.0,0.00228995]
[1745225208743,4e-05,87356.0,87329.0,0.11944791]